bitfinex/quotes_BTCUSD_20240819
["timestamp","ask_amount","ask_price","bid_price","bid_amount"]
[1724053630469,0.00712739,58745.0,58744.0,1.26320066]
[1724053633958,0.08422739,58745.0,58744.0,0.65802412]
[1724053634097,0.14482739,58745.0,58744.0,0.65802412]
[1724053634297,0.06772739,58745.0,58744.0,0.65802412]
[1724053634731,0.00712739,58745.0,58744.0,1.06790066]
[1724053634934,0.00712739,58745.0,58744.0,1.21170066]
[1724053637661,0.07042739,58745.0,58744.0,0.41970212]
[1724053640609,0.07042739,58745.0,58744.0,0.65802412]
[1724053640833,0.07042739,58745.0,58744.0,0.77452412]
[1724053645173,0.07042739,58745.0,58744.0,0.53620212]
[1724053645608,0.07042739,58745.0,58744.0,0.77452412]
[1724053647982,0.07042739,58745.0,58744.0,0.29788012]
[1724053648279,0.07042739,58745.0,58744.0,0.53620212]
[1724053649605,0.07042739,58745.0,58744.0,0.77452412]
[1724053650697,0.07042739,58745.0,58744.0,0.53620212]
[1724053656699,0.07008924,58745.0,58744.0,0.53620212]
[1724053658528,0.00678924,58745.0,58744.0,0.77452412]
[1724053660646,0.00678924,58745.0,58744.0,0.76952412]
[1724053661407,0.00678924,58745.0,58744.0,0.94107866]
[1724053661766,0.00678924,58745.0,58744.0,1.25780066]
[1724053662976,0.00678924,58745.0,58744.0,2.75780066]
[1724053663582,0.00678924,58745.0,58744.0,1.25780066]
[1724053663752,0.00678924,58745.0,58744.0,1.32410066]
[1724053663955,0.00678924,58745.0,58744.0,2.82410066]
[1724053667195,0.00678924,58745.0,58744.0,1.32410066]
[1724053667710,0.00678924,58745.0,58744.0,2.82410066]
[1724053669941,0.00678924,58745.0,58744.0,2.81010066]
[1724053670121,0.00678924,58745.0,58744.0,2.79610066]
[1724053670293,0.00678924,58745.0,58744.0,2.81010066]
[1724053670504,0.00678924,58745.0,58744.0,2.82410066]
[1724053670700,0.00678924,58745.0,58744.0,1.32410066]
[1724053670879,0.00678924,58745.0,58744.0,1.33810066]
[1724053671081,0.00678924,58745.0,58744.0,2.83810066]
[1724053671402,0.00678924,58745.0,58744.0,2.82410066]
[1724053671769,0.00678924,58745.0,58744.0,2.83810066]
[1724053672342,0.00678924,58745.0,58744.0,2.79700486]
[1724053672709,0.00678924,58745.0,58744.0,2.82500486]
[1724053674238,0.00678924,58745.0,58744.0,1.32500486]
[1724053674646,0.00678924,58745.0,58744.0,2.82500486]
[1724053674849,0.00678924,58745.0,58744.0,2.64220486]
[1724053675052,0.00707038,58745.0,58744.0,2.75870486]
[1724053677078,0.07087038,58745.0,58744.0,0.82548286]
[1724053680720,0.07087038,58745.0,58744.0,0.41560632]
[1724053680931,0.15307038,58745.0,58744.0,0.41560632]
[1724053688533,0.07087038,58745.0,58744.0,0.41560632]
[1724053691064,0.119147,58751.0,58747.0,0.1165]
[1724053691265,0.119147,58751.0,58747.0,0.235654]
[1724053691507,0.4090437,58755.0,58747.0,0.119154]
[1724053691710,0.119145,58752.0,58748.0,0.1165]
[1724053692130,0.357423,58754.0,58748.0,0.235651]
[1724053692335,0.119143,58753.0,58748.0,0.235651]
[1724053692532,0.119145,58752.0,58748.0,0.235651]
[1724053692740,0.119145,58752.0,58748.0,0.1165]
[1724053693141,0.119147,58751.0,58748.0,0.1165]
[1724053693272,0.119147,58751.0,58748.0,0.1245]
[1724053693703,0.119145,58752.0,58748.0,0.1245]
[1724053693907,0.1456,58751.0,58748.0,0.1245]
[1724053694064,0.264748,58751.0,58748.0,0.1245]
[1724053694823,0.264748,58751.0,58748.0,0.1335]
[1724053695140,0.264748,58751.0,58748.0,0.1255]
[1724053695531,0.264748,58751.0,58748.0,0.01]
[1724053695798,0.0826,58751.0,58748.0,0.022]
[1724053695993,0.238274,58756.0,58748.0,0.022]
[1724053695994,0.19785,58749.0,58748.0,0.022]
[1724053696146,0.26035,58749.0,58748.0,0.022]
[1724053696913,0.26035,58749.0,58748.0,0.012]
[1724053697119,0.1412,58749.0,58748.0,0.012]
[1724053698079,0.1412,58749.0,58746.0,0.119156]
[1724053698482,0.1412,58749.0,58745.0,0.235658]
[1724053698879,0.1412,58749.0,58748.0,0.012]
[1724053699098,0.1412,58749.0,58748.0,0.014]
[1724053699502,0.1412,58749.0,58746.0,0.119156]
[1724053699701,0.1412,58749.0,58746.0,0.131156]
[1724053699902,0.0625,58749.0,58746.0,0.119156]
[1724053700252,0.0625,58749.0,58748.0,0.235652]
[1724053700387,0.0625,58749.0,58748.0,0.247652]
[1724053701675,0.0625,58749.0,58748.0,0.235652]
[1724053702450,0.0625,58749.0,58748.0,0.249652]
[1724053702663,0.0625,58749.0,58748.0,0.261652]
[1724053703412,0.05192488,58751.0,58749.0,0.119149]
[1724053704394,0.000822,58751.0,58749.0,0.119149]
[1724053705172,0.000822,58751.0,58749.0,0.13115]
[1724053705597,0.000822,58751.0,58749.0,0.14115]
[1724053714595,0.1429,58750.0,58749.0,0.022]
[1724053714805,0.76606506,58750.0,58749.0,0.022]
[1724053715010,1.05344417,58750.0,58749.0,0.022]
[1724053715632,1.05344417,58750.0,58749.0,0.01]
[1724053715832,0.93429617,58750.0,58748.0,0.0009042]
[1724053716008,0.81875717,58749.0,58748.0,0.0009042]
[1724053716647,0.76967506,58749.0,58748.0,0.0009042]
[1724053717410,0.89739738,58749.0,58748.0,0.0009042]
[1724053718768,0.89939738,58749.0,58748.0,0.0009042]
[1724053719287,0.89939738,58749.0,58748.0,0.0019042]
[1724053719909,1.13769838,58749.0,58748.0,0.0019042]
[1724053720115,1.16207089,58749.0,58748.0,0.0019042]
[1724053720315,1.54465219,58749.0,58748.0,0.0019042]
[1724053720530,1.64261836,58749.0,58748.0,0.0019042]
[1724053720956,1.64261836,58749.0,58744.0,0.0109042]
[1724053720957,1.216331,58745.0,58744.0,0.0109042]
[1724053721147,0.619919,58738.0,58737.0,0.0009042]
[1724053721300,1.51147489,58738.0,58737.0,0.0009042]
[1724053721500,1.66454019,58738.0,58737.0,0.0009042]
[1724053722077,1.66054019,58738.0,58737.0,0.0009042]
[1724053722708,1.50747489,58738.0,58737.0,0.0009042]
[1724053722865,1.65184805,58738.0,58737.0,0.0019042]
[1724053723089,1.50747489,58738.0,58737.0,0.0009042]
[1724053723298,1.45738006,58738.0,58737.0,0.0009042]
[1724053723504,1.45738006,58738.0,58737.0,0.0019042]
[1724053723505,1.58984731,58738.0,58737.0,0.0019042]
[1724053723744,1.56430861,58738.0,58737.0,0.0019042]
[1724053723895,1.55930861,58738.0,58737.0,0.0009042]
[1724053724097,1.57030847,58738.0,58737.0,0.0019042]
[1724053724302,1.55523769,58738.0,58737.0,0.0019042]
[1724053724507,1.30589169,58738.0,58737.0,0.0009042]
[1724053724912,1.31789169,58738.0,58737.0,0.0019042]
[1724053725112,1.31889169,58738.0,58737.0,0.0019042]
[1724053725373,1.32289169,58738.0,58737.0,0.0019042]
[1724053725588,1.36886468,58738.0,58737.0,0.0019042]
[1724053725780,1.36586468,58738.0,58737.0,0.0019042]
[1724053726015,1.29046863,58738.0,58737.0,0.0019042]
[1724053726223,1.29046863,58738.0,58737.0,0.0029042]
[1724053726224,1.30346863,58738.0,58737.0,0.0029042]
[1724053726422,1.33490532,58738.0,58737.0,0.0029042]
[1724053726625,1.3798458,58738.0,58737.0,0.0029042]
[1724053727052,1.3658458,58738.0,58737.0,0.0019042]
[1724053727254,1.37984369,58738.0,58737.0,0.0029042]
[1724053727661,1.29246863,58738.0,58737.0,0.0019042]
[1724053728066,1.216611,58738.0,58737.0,0.0019042]
[1724053728455,1.26750491,58738.0,58737.0,0.0019042]
[1724053728661,1.25650491,58738.0,58737.0,0.0019042]
[1724053728993,1.26650491,58738.0,58737.0,0.0019042]
[1724053729433,1.215611,58738.0,58737.0,0.0019042]
[1724053730040,1.13664047,58738.0,58737.0,0.0019042]
[1724053730291,1.215611,58738.0,58737.0,0.0019042]
[1724053730486,1.26649338,58738.0,58737.0,0.0019042]
[1724053730685,1.215611,58738.0,58737.0,0.0019042]
[1724053731063,1.26649338,58738.0,58737.0,0.0019042]
[1724053731907,1.26647563,58738.0,58737.0,0.0019042]
[1724053732122,1.3615733,58738.0,58737.0,0.0019042]
[1724053732342,1.41243793,58738.0,58737.0,0.0019042]
[1724053732508,1.3615733,58738.0,58737.0,0.0019042]
[1724053732914,1.41543793,58738.0,58737.0,0.0019042]
[1724053733115,1.3645733,58738.0,58737.0,0.0019042]
[1724053733324,1.218611,58738.0,58737.0,0.0019042]
[1724053733824,1.215611,58738.0,58737.0,0.0019042]
[1724053735832,1.216611,58738.0,58737.0,0.0019042]
[1724053736035,1.218611,58738.0,58737.0,0.0019042]
[1724053736994,1.215611,58738.0,58737.0,0.0019042]
[1724053738028,1.2152013,58738.0,58737.0,0.0019042]
[1724053738240,1.2162013,58738.0,58737.0,0.0019042]
[1724053738380,1.27867491,58738.0,58737.0,0.0019042]
[1724053738805,1.28067491,58738.0,58737.0,0.0019042]
[1724053739273,1.2182013,58738.0,58737.0,0.0019042]
[1724053740348,1.4585473,58738.0,58737.0,0.0019042]
[1724053740543,1.48881774,58738.0,58737.0,0.0019042]
[1724053740699,1.61444131,58738.0,58737.0,0.0019042]
[1724053740954,1.66356304,58738.0,58737.0,0.0019042]
[1724053741130,1.83511758,58738.0,58737.0,0.0019042]
[1724053741450,2.07346358,58738.0,58737.0,0.0019042]
[1724053741803,1.83511758,58738.0,58737.0,0.0019042]
[1724053742183,1.66356304,58738.0,58737.0,0.0019042]
[1724053743139,1.53648327,58738.0,58737.0,0.0019042]
[1724053744191,1.53472444,58738.0,58737.0,0.0019042]
[1724053746187,1.63631962,58738.0,58737.0,0.0019042]
[1724053746391,1.80787416,58738.0,58737.0,0.0019042]
[1724053746596,1.70627898,58738.0,58737.0,0.0019042]
[1724053747132,1.80788044,58738.0,58737.0,0.0019042]
[1724053747536,1.70627898,58738.0,58737.0,0.0019042]
[1724053749655,1.83329039,58738.0,58737.0,0.0019042]
[1724053750338,1.70627898,58738.0,58737.0,0.0019042]
[1724053750548,1.83329039,58738.0,58737.0,0.0019042]
[1724053753491,1.70427898,58738.0,58737.0,0.0019042]
[1724053753707,1.70627898,58738.0,58737.0,0.0019042]
[1724053758444,1.70710098,58738.0,58737.0,0.0019042]
[1724053758681,1.85951468,58738.0,58737.0,0.0019042]
[1724053759502,1.80124156,58738.0,58737.0,0.0019042]
[1724053763278,1.97270697,58738.0,58737.0,0.0019042]
[1724053763488,1.80124156,58738.0,58737.0,0.0019042]
[1724053768673,1.62968702,58738.0,58737.0,0.0019042]
[1724053773445,1.55068702,58738.0,58737.0,0.0019042]
[1724053776263,1.55420605,58738.0,58737.0,0.0019042]
[1724053780638,1.49230605,58738.0,58737.0,0.0019042]
[1724053780837,1.48830605,58738.0,58737.0,0.0783042]
[1724053781040,1.49243548,58738.0,58737.0,0.0783042]
[1724053781246,1.52780367,58738.0,58737.0,0.0783042]
[1724053781663,1.52980367,58738.0,58737.0,0.0783042]
[1724053781879,1.49043548,58738.0,58737.0,0.0783042]
[1724053782336,1.13558948,58738.0,58737.0,0.0783042]
[1724053782544,1.13558948,58738.0,58737.0,0.1386042]
[1724053782769,1.30809718,58738.0,58737.0,0.1386042]
[1724053782972,1.30709718,58738.0,58737.0,0.1386042]
[1724053783195,1.25108948,58738.0,58737.0,0.1386042]
[1724053783613,1.42359718,58738.0,58737.0,0.1386042]
[1724053784255,1.57246281,58738.0,58737.0,0.0783042]
[1724053784372,1.39995511,58738.0,58737.0,0.0783042]
[1724053785292,1.39995511,58738.0,58737.0,0.0019042]
[1724053785293,1.46015511,58738.0,58737.0,0.0019042]
[1724053788009,1.69850111,58738.0,58737.0,0.0019042]
[1724053788439,1.77370111,58738.0,58737.0,0.0019042]
[1724053790226,1.77043297,58738.0,58737.0,0.0019042]
[1724053790635,1.55146229,58738.0,58737.0,0.0019042]
[1724053794717,1.551409,58738.0,58737.0,0.0019042]
[1724053799513,1.78996665,58738.0,58737.0,0.0019042]
[1724053799718,1.55162065,58738.0,58737.0,0.0019042]
[1724053800762,1.78996665,58738.0,58737.0,0.0019042]
[1724053800976,1.55162065,58738.0,58737.0,0.0019042]
[1724053801183,1.72241445,58738.0,58737.0,0.0019042]
[1724053801775,1.49065991,58738.0,58737.0,0.0019042]
[1724053801959,1.49065991,58738.0,58737.0,0.0839042]
[1724053802532,1.48665991,58738.0,58737.0,0.0839042]
[1724053802961,1.48865991,58738.0,58737.0,0.0839042]
[1724053803579,1.48665991,58738.0,58737.0,0.0839042]
[1724053805349,1.48865991,58738.0,58737.0,0.0839042]
[1724053805728,1.48665991,58738.0,58737.0,0.0839042]
[1724053806270,1.48865991,58738.0,58737.0,0.0839042]
[1724053806881,1.48665991,58738.0,58737.0,0.0839042]
[1724053807485,1.48865991,58738.0,58737.0,0.0839042]
[1724053807835,1.48565991,58738.0,58737.0,0.1445042]
[1724053808478,1.36915991,58738.0,58737.0,0.1445042]
[1724053808679,1.48565991,58738.0,58737.0,0.1445042]
[1724053809847,1.48665991,58738.0,58737.0,0.1445042]
[1724053811914,1.49081304,58738.0,58737.0,0.1445042]
[1724053812627,1.49281304,58738.0,58737.0,0.1445042]
[1724053815021,1.49281304,58738.0,58737.0,0.0839042]
[1724053815367,1.49481304,58738.0,58737.0,0.0019042]
[1724053815677,1.55851304,58738.0,58737.0,0.0019042]
[1724053820795,1.44201304,58738.0,58737.0,0.0019042]
[1724053821000,1.49481304,58738.0,58737.0,0.0019042]
[1724053821426,1.66636758,58738.0,58737.0,0.0019042]
[1724053823286,1.93471358,58738.0,58737.0,0.0019042]
[1724053823498,2.08131358,58738.0,58737.0,0.0019042]
[1724053824776,2.33301005,58738.0,58737.0,0.0019042]
[1724053825207,2.08131358,58738.0,58737.0,2e-07]
[1724053825414,1.458535,58732.0,58731.0,0.0009042]
[1724053825617,1.84095784,58732.0,58731.0,0.0009042]
[1724053827021,1.84095784,58732.0,58731.0,0.0019042]
[1724053827237,1.85295784,58732.0,58731.0,0.0019042]
[1724053828101,1.86316007,58732.0,58731.0,0.0019042]
[1724053828315,2.03471461,58732.0,58731.0,0.0019042]
[1724053828742,2.04371461,58732.0,58731.0,0.0029042]
[1724053829375,2.07371461,58732.0,58731.0,0.0029042]
[1724053829991,2.07162617,58732.0,58731.0,0.0029042]
[1724053830617,2.07162617,58732.0,58731.0,2e-07]
[1724053830618,2.30999617,58732.0,58731.0,2e-07]
[1724053831031,2.30999617,58732.0,58715.0,0.0810042]
[1724053831032,0.239435,58716.0,58715.0,0.0810042]
[1724053831251,0.79048182,58716.0,58715.0,0.0810042]
[1724053831454,1.81204141,58716.0,58715.0,0.0810042]
[1724053831670,2.2075264,58716.0,58715.0,0.0810042]
[1724053831872,2.39272563,58716.0,58715.0,0.0810042]
[1724053832292,2.40172563,58716.0,58715.0,0.0810042]
[1724053832709,2.41372563,58716.0,58715.0,0.0810042]
[1724053832910,2.40172563,58716.0,58715.0,0.0810042]
[1724053833115,2.41572563,58716.0,58715.0,0.0810042]
[1724053833520,2.40172563,58716.0,58715.0,0.0810042]
[1724053833722,2.41693643,58716.0,58715.0,0.0810042]
[1724053833927,2.43093643,58716.0,58715.0,0.0810042]
[1724053834135,2.42693643,58716.0,58715.0,0.0810042]
[1724053834351,2.19250143,58716.0,58715.0,0.0810042]
[1724053834562,1.66762092,58716.0,58715.0,0.1466042]
[1724053834771,1.87093419,58716.0,58715.0,0.1466042]
[1724053835195,1.87093419,58716.0,58715.0,0.0810042]
[1724053835196,1.92356595,58716.0,58715.0,0.0810042]
[1724053835403,2.2220867,58716.0,58715.0,0.0810042]
[1724053835611,2.2500867,58716.0,58715.0,0.0810042]
[1724053836442,2.2360867,58716.0,58715.0,0.0810042]
[1724053836658,2.08312049,58716.0,58715.0,0.0810042]
[1724053837271,2.09512049,58716.0,58715.0,0.0810042]
[1724053837475,2.17824691,58716.0,58715.0,0.0810042]
[1724053837680,2.17824691,58716.0,58715.0,0.0009042]
[1724053838297,2.17424691,58716.0,58715.0,0.0009042]
[1724053838503,2.16224691,58716.0,58715.0,0.0009042]
[1724053838726,2.14824691,58716.0,58715.0,0.0009042]
[1724053838928,2.17396047,58716.0,58715.0,0.0009042]
[1724053839128,2.15996047,58716.0,58715.0,0.0009042]
[1724053839549,2.24594659,58716.0,58715.0,0.0009042]
[1724053839778,0.1429,58711.0,58698.0,0.076221]
[1724053839931,0.475256,58699.0,58698.0,0.076221]
[1724053840138,1.68427356,58699.0,58698.0,0.076221]
[1724053840366,1.89481577,58699.0,58698.0,0.076221]
[1724053840575,2.12500665,58699.0,58698.0,0.076221]
[1724053840773,0.713822,58693.0,58692.0,0.041421]
[1724053840976,1.0731583,58693.0,58692.0,0.041421]
[1724053841193,0.837893,58690.0,58682.0,0.51177509]
[1724053841392,1.00527531,58690.0,58682.0,0.51177509]
[1724053841627,1.00527531,58690.0,58678.0,0.009042]
[1724053841628,1.054393,58690.0,58678.0,0.009042]
[1724053841889,1.06409179,58690.0,58678.0,0.009042]
[1724053842540,0.9475085,58690.0,58678.0,0.009042]
[1724053842987,1.35760404,58690.0,58678.0,0.009042]
[1724053843192,1.37160404,58690.0,58678.0,0.009042]
[1724053843432,1.38160404,58690.0,58678.0,0.009042]
[1724053843837,1.38360404,58690.0,58689.0,0.088142]
[1724053844048,1.37360404,58690.0,58689.0,0.088142]
[1724053844252,1.38460404,58690.0,58689.0,0.088142]
[1724053844458,1.38660404,58690.0,58689.0,0.088142]
[1724053844666,1.37967634,58690.0,58689.0,0.009042]
[1724053844867,1.38167634,58690.0,58689.0,0.009042]
[1724053845072,1.90847634,58690.0,58689.0,0.009042]
[1724053847955,2.25551734,58690.0,58689.0,0.009042]
[1724053848164,0.839935,58687.0,58678.0,0.009042]
[1724053848370,0.358879,58679.0,58678.0,0.009042]
[1724053848576,1.738451,58679.0,58678.0,0.009042]
[1724053848785,1.98929372,58679.0,58678.0,0.009042]
[1724053848989,2.16084826,58679.0,58678.0,0.009042]
[1724053849195,1.92226226,58679.0,58678.0,0.009042]
[1724053849600,1.93426226,58679.0,58678.0,0.009042]
[1724053850212,1.76170772,58679.0,58678.0,0.009042]
[1724053850422,1.47010772,58679.0,58678.0,0.087742]
[1724053850624,1.47010772,58679.0,58678.0,0.148942]
[1724053851048,1.47910772,58679.0,58678.0,0.148942]
[1724053852488,1.00193572,58679.0,58678.0,0.148942]
[1724053852693,0.90193572,58679.0,58678.0,0.148942]
[1724053854153,0.89293572,58679.0,58678.0,0.148942]
[1724053854358,0.89493572,58679.0,58678.0,0.148942]
[1724053854575,0.99493572,58679.0,58678.0,0.148942]
[1724053854781,0.99293572,58679.0,58678.0,0.148942]
[1724053854988,0.98093572,58679.0,58678.0,0.148942]
[1724053855204,0.62305672,58679.0,58678.0,0.148942]
[1724053855460,0.62805672,58679.0,58678.0,0.148942]
[1724053855676,0.62305672,58679.0,58678.0,0.148942]
[1724053855891,0.74634972,58679.0,58678.0,0.148942]
[1724053856101,0.74234972,58679.0,58678.0,0.148942]
[1724053856301,0.74434972,58679.0,58678.0,0.148942]
[1724053856505,0.74734972,58679.0,58678.0,0.148942]
[1724053856714,0.74534972,58679.0,58678.0,0.148942]
[1724053856920,0.98393572,58679.0,58678.0,0.148942]
[1724053858352,0.62605672,58679.0,58678.0,0.148942]
[1724053858571,0.74534972,58679.0,58678.0,0.148942]
[1724053859390,0.98393572,58679.0,58678.0,0.148942]
[1724053859591,0.62605672,58679.0,58678.0,0.148942]
[1724053859818,0.74534972,58679.0,58678.0,0.148942]
[1724053861465,0.52605672,58679.0,58678.0,0.268237]
[1724053861643,0.52605672,58679.0,58678.0,0.506827]
[1724053862541,0.52605672,58679.0,58664.0,0.0114967]
[1724053862542,0.670543,58665.0,58664.0,0.0114967]
[1724053862742,1.26715,58665.0,58664.0,0.0114967]
[1724053862946,1.74290358,58665.0,58664.0,0.0114967]
[1724053863394,1.61608858,58665.0,58664.0,0.0114967]
[1724053864413,1.63008858,58665.0,58664.0,0.0114967]
[1724053865234,1.63508858,58665.0,58664.0,0.0114967]
[1724053865356,1.63108858,58665.0,58664.0,0.0114967]
[1724053865565,2.14388858,58665.0,58664.0,0.0114967]
[1724053865766,2.32744312,58665.0,58664.0,0.0114967]
[1724053866220,2.29944312,58665.0,58664.0,0.0114967]
[1724053866421,2.31344312,58665.0,58664.0,0.0114967]
[1724053866870,2.32744312,58665.0,58664.0,0.0114967]
[1724053867917,2.15588858,58665.0,58664.0,0.0114967]
[1724053868128,2.07688858,58665.0,58664.0,0.0114967]
[1724053868539,2.07788858,58665.0,58664.0,0.0114967]
[1724053869346,2.01458858,58665.0,58664.0,0.0114967]
[1724053869555,1.72298858,58665.0,58664.0,0.0114967]
[1724053870645,1.87365797,58665.0,58664.0,0.0114967]
[1724053872023,1.95265797,58665.0,58664.0,0.0114967]
[1724053872234,1.87365797,58665.0,58664.0,0.0114967]
[1724053873180,1.72298858,58665.0,58664.0,0.0114967]
[1724053877765,1.72298858,58665.0,58664.0,0.012402]
[1724053881412,1.73335948,58665.0,58664.0,0.012402]
[1724053881897,0.54909558,58665.0,58664.0,0.091902]
[1724053882117,0.66841658,58665.0,58664.0,0.091902]
[1724053882329,1.14570258,58665.0,58664.0,0.091902]
[1724053882739,0.89305958,58665.0,58664.0,0.091902]
[1724053883165,0.90705958,58665.0,58664.0,0.091902]
[1724053883604,0.87905958,58665.0,58664.0,0.091902]
[1724053884007,0.89105958,58665.0,58664.0,0.091902]
[1724053888593,1.12970258,58665.0,58664.0,0.091902]
[1724053889939,1.27161993,58665.0,58664.0,0.091902]
[1724053890574,1.12970258,58665.0,58664.0,0.091902]
[1724053891827,0.89105958,58665.0,58664.0,0.091902]
[1724053892037,0.65241658,58665.0,58664.0,0.154402]
[1724053893095,0.89105958,58665.0,58664.0,0.154402]
[1724053893302,0.65241658,58665.0,58664.0,0.154402]
[1724053893772,0.53309558,58665.0,58664.0,0.154402]
[1724053895293,0.89105958,58665.0,58664.0,0.154402]
[1724053895497,0.89105958,58665.0,58664.0,0.091902]
[1724053895498,1.12970258,58665.0,58664.0,0.091902]
[1724053895707,1.36834558,58665.0,58664.0,0.012402]
[1724053902267,1.41920947,58665.0,58664.0,0.012402]
[1724053903340,1.36834558,58665.0,58664.0,0.012402]
[1724053904385,1.40980152,58665.0,58664.0,0.012402]
[1724053904598,1.48609735,58665.0,58664.0,0.012402]
[1724053904820,1.45948825,58665.0,58664.0,0.012402]
[1724053905302,1.51062763,58665.0,58664.0,0.012402]
[1724053905566,1.57094866,58665.0,58664.0,0.012402]
[1724053907281,1.59638061,58665.0,58664.0,0.012402]
[1724053908089,1.69638061,58665.0,58664.0,0.012402]
[1724053908321,1.56922088,58665.0,58664.0,0.012402]
[1724053909363,1.56906264,58665.0,58664.0,0.012402]
[1724053910008,1.74061718,58665.0,58664.0,0.012402]
[1724053910408,1.89356168,58665.0,58664.0,0.012402]
[1724053910974,1.8919382,58665.0,58664.0,0.012402]
[1724053912222,2.00913128,58665.0,58664.0,0.012402]
[1724053913187,1.85618051,58665.0,58664.0,0.012402]
[1724053913392,1.68462597,58665.0,58664.0,0.012402]
[1724053914420,1.98686897,58665.0,58664.0,0.012402]
[1724053914625,2.06686897,58665.0,58664.0,0.012402]
[1724053917613,2.06786897,58665.0,58664.0,0.012402]
[1724053918359,2.06086897,58665.0,58664.0,0.012402]
[1724053918587,2.23386686,58665.0,58664.0,0.012402]
[1724053918796,2.23086686,58665.0,58664.0,0.012402]
[1724053919219,2.24386686,58665.0,58664.0,0.012402]
[1724053919989,2.23386686,58665.0,58664.0,0.012402]
[1724053920341,2.24386686,58665.0,58664.0,0.012402]
[1724053921942,1.92771232,58665.0,58664.0,0.012402]
[1724053922228,2.10233373,58665.0,58664.0,0.012402]
[1724053922432,1.93023885,58665.0,58664.0,0.012402]
[1724053924777,1.92992314,58665.0,58664.0,0.012402]
[1724053924988,1.69128014,58665.0,58664.0,0.012402]
[1724053926912,1.69505281,58665.0,58664.0,0.012402]
[1724053927329,1.57771482,58665.0,58664.0,0.092902]
[1724053927535,1.57771482,58665.0,58664.0,0.155102]
[1724053927948,1.57771482,58665.0,58664.0,0.092902]
[1724053928564,1.69441482,58665.0,58664.0,0.092902]
[1724053928980,1.69441482,58665.0,58664.0,0.012402]
[1724053929185,1.84743268,58665.0,58664.0,0.012402]
[1724053929807,1.81284459,58665.0,58664.0,0.012402]
[1724053930015,1.81384459,58665.0,58664.0,0.012402]
[1724053930221,1.81284459,58665.0,58664.0,0.012402]
[1724053930433,1.95653867,58665.0,58664.0,0.012402]
[1724053930638,1.69614459,58665.0,58664.0,0.012402]
[1724053931230,1.69914459,58665.0,58664.0,0.012402]
[1724053931679,1.69614459,58665.0,58664.0,0.012402]
[1724053933324,1.69614459,58665.0,58664.0,0.093402]
[1724053933530,1.69614459,58665.0,58664.0,0.159402]
[1724053934792,1.69614459,58665.0,58664.0,0.093402]
[1724053935003,1.69614459,58665.0,58664.0,0.012402]
[1724053936037,1.69629728,58665.0,58664.0,0.012402]
[1724053940389,1.69592761,58665.0,58664.0,0.012402]
[1724053940958,1.69592761,58665.0,58664.0,0.155502]
[1724053941384,1.73125453,58665.0,58664.0,0.155502]
[1724053943035,1.52843448,58665.0,58664.0,0.155502]
[1724053943239,1.65604212,58665.0,58664.0,0.155502]
[1724053943461,1.52843448,58665.0,58664.0,0.155502]
[1724053943924,1.65604212,58665.0,58664.0,0.155502]
[1724053944938,1.52843448,58665.0,58664.0,0.155502]
[1724053945141,1.66113636,58665.0,58664.0,0.155502]
[1724053945348,1.53354902,58665.0,58664.0,0.155502]
[1724053945950,1.53354902,58665.0,58664.0,0.012402]
[1724053945951,1.88918674,58665.0,58664.0,0.012402]
[1724053946236,1.64459831,58665.0,58664.0,0.012402]
[1724053947782,1.58369831,58665.0,58664.0,0.012402]
[1724053948197,1.97544612,58665.0,58664.0,0.012402]
[1724053948402,1.76659607,58665.0,58664.0,0.012402]
[1724053949016,1.84849607,58665.0,58664.0,0.012402]
[1724053949669,1.84000203,58665.0,58664.0,0.012402]
[1724053950881,2.07864503,58665.0,58664.0,0.012402]
[1724053951084,1.84000203,58665.0,58664.0,0.012402]
[1724053951651,2.07864503,58665.0,58664.0,0.012402]
[1724053952694,2.19544503,58665.0,58664.0,0.012402]
[1724053954007,1.69735818,58665.0,58664.0,0.012402]
[1724053954235,1.81560225,58665.0,58664.0,0.012402]
[1724053954876,2.05424525,58665.0,58664.0,0.012402]
[1724053955886,1.81560225,58665.0,58664.0,0.012402]
[1724053956303,1.69880225,58665.0,58664.0,0.012402]
[1724053956511,1.81560225,58665.0,58664.0,0.012402]
[1724053956949,1.81560225,58665.0,58657.0,0.00451475]
[1724053956950,0.836348,58658.0,58657.0,0.00451475]
[1724053957149,0.836348,58658.0,58656.0,0.009042]
[1724053957150,0.391012,58657.0,58656.0,0.00695095]
[1724053957359,1.20733381,58657.0,58656.0,0.00695095]
[1724053957568,2.0871026,58657.0,58656.0,0.00695095]
[1724053957775,1.97729626,58657.0,58656.0,0.00695095]
[1724053957978,2.2828342,58657.0,58656.0,0.00695095]
[1724053958179,2.11070484,58657.0,58656.0,0.00695095]
[1724053958390,2.12470484,58657.0,58656.0,0.00695095]
[1724053958997,2.13770484,58657.0,58656.0,0.00695095]
[1724053959201,1.89902984,58657.0,58656.0,0.00695095]
[1724053960318,1.8928131,58657.0,58656.0,0.00695095]
[1724053960712,1.7926226,58657.0,58656.0,0.00695095]
[1724053960874,1.96417714,58657.0,58656.0,0.00695095]
[1724053961285,1.94556252,58657.0,58656.0,0.00695095]
[1724053962354,1.79339373,58657.0,58656.0,0.00695095]
[1724053962557,1.78300189,58657.0,58656.0,0.00695095]
[1724053962784,1.63006197,58657.0,58656.0,0.00695095]
[1724053963190,1.58489543,58657.0,58656.0,0.00695095]
[1724053964352,1.5848963,58657.0,58656.0,0.00695095]
[1724053965405,1.3462213,58657.0,58656.0,0.00695095]
[1724053965608,1.47366999,58657.0,58656.0,0.00695095]
[1724053966134,1.34622196,58657.0,58656.0,0.00695095]
[1724053966332,1.34622196,58657.0,58656.0,0.15225095]
[1724053966333,0.76887196,58657.0,58656.0,0.15225095]
[1724053966559,1.1095111,58657.0,58656.0,0.15225095]
[1724053967302,1.0965111,58657.0,58656.0,0.15225095]
[1724053967534,0.98054696,58657.0,58656.0,0.15225095]
[1724053967752,0.98754696,58657.0,58656.0,0.15225095]
[1724053967999,0.99754696,58657.0,58656.0,0.15225095]
[1724053968650,0.86068939,58657.0,58656.0,0.15225095]
[1724053968978,1.08275336,58657.0,58656.0,0.15225095]
[1724053969181,1.09934005,58657.0,58656.0,0.15225095]
[1724053969975,0.99752262,58657.0,58656.0,0.15225095]
[1724053970184,1.12497131,58657.0,58656.0,0.15225095]
[1724053970563,1.09934329,58657.0,58656.0,0.15225095]
[1724053970758,1.09934333,58657.0,58656.0,0.15225095]
[1724053971595,1.09934333,58657.0,58656.0,0.00695095]
[1724053972259,1.10331912,58657.0,58656.0,0.00695095]
[1724053973627,0.86464412,58657.0,58656.0,0.08625095]
[1724053974072,1.10331912,58657.0,58656.0,0.08625095]
[1724053974853,0.60329791,58657.0,58656.0,0.50596895]
[1724053975052,0.55238035,58657.0,58656.0,0.50596895]
[1724053975270,0.53579366,58657.0,58656.0,0.50596895]